{"text_format":"1","workbook":"xlsx","n_sheets":5,"sheets":["Instrukcja dla Zleceniodawcy","Zlecenie badań_v3","Lista Oddziałów","Wykaz badań","Zestawy"],"not_rendered":{"charts":0,"images":8,"macros":1,"external_links":1,"defined_names":5,"comments":0,"pivot_tables":0},"unopened":[],"bounds":{"document_bytes":16777216,"sheet_cells":100000,"rows_first":2000,"rows_last":500,"rows_between":2000,"halvings":0,"cell_chars":16384,"cell_head_chars":4096},"cells_cut":0,"cells_raw":0,"read":"whole","date_system":"1900"}

{"sheet":"Instrukcja dla Zleceniodawcy","index":0,"n_rows":53,"n_cols":1,"rows_kept":53,"cut":false,"hidden":false,"merged":[[38,0,38,16]]}
["1. Formularz zawiera część danych wypełnianych poprzez wybór z listy rozwijanej:"]
[]
[]
[]
[]
[]
[]
[]
[]
[]
[]
[]
[]
[]
[]
[]
[]
[]
[]
["2. Kolumna Obiekt badań jest dwudzielna - jedna część stanowi listę wyboru a druga umożliwia wprowadzenie informacji w opraciu o wybrany zakres w pierwszej części kolumny:"]
[]
[]
[]
[]
[]
[]
[]
["3. W kolumnie Badana cecha, identyfikacja metody lista rozwijana jest aktywowana dopiero po wyborze zestawu informacji wg Zespołu w kolumnie Obiekt badań"]
[]
[]
[]
[]
[]
[]
[]
[]
[]
[]
["4. Lista rozwijana w kolumnie Badana cecha, identyfikacja metody jest listą wielokrotnego wyboru - dodanie następuje poprzez wielokrotny wybór pojedynczej pozycji.  W przpypadku wielu pozycji może być wymagane ręczne dostosowanie wysokości wiersza.\nW przypadku błędnego wyboru proces wybierania należy rozpocząć od nowa zaczynając w pierwszej kolejności od usunięcie wyświetlanych wybranych pozycji  poprzez wciśnięcie przycisku \"Delete\" na klawiaturze. Należy pamiętać, że czyszczona komórka musi być aktywna w trakcie naciśnięcia przycisku \"Delete\"."]
[]
[]
[]
[]
[]
[]
[]
[]
[]
[]
[]
[]
[]
["5. Liczbę wierszy w tabeli można regulować automatycznie od 1 do 6:"]

{"sheet":"Zlecenie badań_v3","index":1,"n_rows":57,"n_cols":20,"rows_kept":57,"cut":false,"hidden":false,"merged":[[46,0,46,20],[45,0,45,4],[81,0,81,11],[83,0,83,11],[2,21,2,32],[0,3,5,6],[0,7,5,9],[0,10,5,13],[0,14,5,15],[0,16,5,19],[7,0,9,2],[7,3,9,9],[7,10,9,11],[7,12,9,20],[10,0,12,2],[10,3,12,9],[10,10,12,11],[10,12,12,20],[13,0,13,20],[15,3,15,6],[15,8,15,11],[15,13,15,14],[15,15,15,16],[15,17,15,18],[15,19,15,20],[16,21,21,35],[17,4,17,6],[17,8,17,11],[17,13,17,14],[17,15,17,16],[17,17,17,18],[17,19,17,20],[18,4,18,6],[18,8,18,11],[18,13,18,14],[16,4,16,6],[16,8,16,11],[16,13,16,14],[16,15,16,16],[16,17,16,18],[16,19,16,20],[20,19,20,20],[18,15,18,16],[18,17,18,18],[18,19,18,20],[19,4,19,6],[19,8,19,11],[19,13,19,14],[19,15,19,16],[19,17,19,18],[19,19,19,20],[20,4,20,6],[20,8,20,11],[20,13,20,14],[20,15,20,16],[20,17,20,18],[42,1,42,4],[33,1,33,20],[21,4,21,6],[21,8,21,11],[21,13,21,14],[21,15,21,16],[21,17,21,18],[21,19,21,20],[23,0,23,20],[25,0,25,9],[26,0,28,20],[31,0,31,9],[32,1,32,20],[71,0,71,11],[73,0,73,11],[56,0,56,9],[34,1,34,20],[35,1,35,20],[37,0,37,9],[54,5,54,9],[54,14,54,20],[39,0,39,9],[41,0,41,20],[44,5,44,9],[51,0,51,9],[38,0,38,6],[47,0,47,20],[40,0,40,1],[43,1,43,4]]}
[null,null,null,"GENERALNA DYREKCJA DRÓG KRAJOWYCH I AUTOSTRAD\nODDZIAŁ W LUBLINIE\nWYDZIAŁ TECHNOLOGII I JAKOŚCI BUDOWY DRÓG - LABORATORIUM DROGOWE\nul. Olszewskiego 1a, 20-481 Lublin\ne-mail: laboratorium_lublin@gddkia.gov.pl\n\nCertyfkat Akredytacji PCA Nr AB 1523\n",null,null,null,"ZLECENIE NR ",null,null,"………………………………..",null,null,null,"z dnia:",null,"……………………"]
[]
[]
[]
[]
[]
[]
["ZLECENIODAWCA:",null,null,null,null,null,null,null,null,null,"osoba do kontaktu:"]
[]
[]
["NAZWA ZADANIA:",null,null,null,null,null,null,null,null,null,"WYKONAWCA:"]
[]
[]
["Zakres zlecenia"]
[]
["Lp.","Rodzaj badań","Typ \nbadań","Obiekt badań",null,null,null,"Data zakończenia robót","Badana cecha, identyfikacja metody (*)",null,null,null,"Ilość badań/\npróbek/\nczęstotliwość","Miejsce badania/ \npobrania ",null,"Termin badania/\npobrania",null,"Dokument odniesienia",null," Wymagania"]
[1]
["2."]
["3."]
["4."]
["5."]
["6."]
[]
["(*) (A) - badanie akredytowane"]
[]
["Informacje dodatkowe:"]
["np.  potwierdzenie zapewnienia obciążonego właściwego samochodu do zastosowania jako przeciwwagi do wykonania badania przez obciążenie płytą statyczną "]
[]
[]
[]
[]
["Załączniki:"]
["np. ","1. Protokół nr ……………… w przypadku pobrania obiektów do badań przez Konsultanta"]
[null,"2. Wyniki badań Wykonawcy (w przypadku badań polowych lub badań przydatności)"]
[null,"3. Recepty: ……………………………………………………………………………………………………………"]
[]
[]
["Stwierdzanie zgodności z wymaganiami w sprawozdaniu z badań (spełnia / nie spełnia)"]
["Czy wymagane jest stwierdzenie zgodności (należy zaznaczyć właściwą komórkę)"]
[]
["TAK ",null,"NIE"]
["Rodzaj dokumentu, na podstawie którego ma się odbyć stwierdzanie zgodności  (należy zaznaczyć właściwą komórkę)"]
[null,"      ILAC-G8:09/2019, p. 4.2.1 (zasada prostej akceptacji)"]
[null,"      Inny (zaproponowany przez Klienta)….............................................................."]
[]
["Tryb rozpatrywania skarg"]
["Klient ma prawo do wniesienia skargi w ciągu 14 dni od daty przekazania sprawozdania z badań.\nProcedura przyjmowania i rozpatrywania skarg i wniosków realizowana jest zgodnie z Zarządzeniem Generalnego Dyrektora Dórg Krajowych i Autostrad i jest dostępna na życzenie. "]
[]
[]
[]
[]
[]
[]
[null,null,null,null,null,null,null,null,null,null,null,null,null,null,null,"…………………………………………………"]
[null,null,null,null,null,null,null,null,null,null,null,null,null,null,"\nData i podpis osoby zlecającej"]
[]
["Adnotacje Zleceniobiorcy:"]

{"sheet":"Lista Oddziałów","index":2,"n_rows":1,"n_cols":1,"rows_kept":1,"cut":false,"hidden":true,"merged":[]}
["GENERALNA DYREKCJA DRÓG KRAJOWYCH I AUTOSTRAD\nODDZIAŁ W LUBLINIE\nWYDZIAŁ TECHNOLOGII I JAKOŚCI BUDOWY DRÓG - LABORATORIUM DROGOWE\nul. Olszewskiego 1a, 20-481 Lublin\ne-mail: laboratorium_lublin@gddkia.gov.pl\n\nCertyfkat Akredytacji PCA Nr AB 1523\n"]

{"sheet":"Wykaz badań","index":3,"n_rows":163,"n_cols":5,"rows_kept":163,"cut":false,"hidden":false,"merged":[]}
["Kategoria","WYKAZ BADAŃ \nwykonywanych w Wydziale Technologii i Jakości Budowy Dróg GDDKiA O/Lublin"]
[{"$f":"Zestawy!$C$5","v":"/ZAiMMA/\nwarstwa:\nmateriał:\nprzeznaczenie:\n……….:"},"ZAiMMA\nZespół Asfaltów i Mieszanek Mineralno-Asfaltowych "]
["/ZAiMMA/\nwarstwa:\nmateriał:\nprzeznaczenie:\n……….:","Pobieranie próbek MMA PN-EN 12697-27:2017-07 pkt 4.1 (A)"]
["/ZAiMMA/\nwarstwa:\nmateriał:\nprzeznaczenie:\n……….:","Pobieranie próbek MMA PN-EN 12697-27:2017-07 pkt  4.3 (A)"]
["/ZAiMMA/\nwarstwa:\nmateriał:\nprzeznaczenie:\n……….:","Pobieranie próbek PN-EN 12697-27:2017-07 pkt 4.7 (A)"]
[{"$f":"Zestawy!$C$5","v":"/ZAiMMA/\nwarstwa:\nmateriał:\nprzeznaczenie:\n……….:"},"Penetracja w temp. 25 ˚C wg PN-EN 1426:2015-08 (A)"]
[{"$f":"Zestawy!$C$5","v":"/ZAiMMA/\nwarstwa:\nmateriał:\nprzeznaczenie:\n……….:"},"Temp. mięknienia wg PN-EN 1427:2015-08"]
[{"$f":"Zestawy!$C$5","v":"/ZAiMMA/\nwarstwa:\nmateriał:\nprzeznaczenie:\n……….:"},"Nawrót sprężysty w 25˚C wg PN-EN 13398:2017-12"]
[{"$f":"Zestawy!$C$5","v":"/ZAiMMA/\nwarstwa:\nmateriał:\nprzeznaczenie:\n……….:"},"Zawartość lepiszcza rozpuszczalnego wg PN-EN 12697-1:2020-08 p. B.1.7 (A)"]
[{"$f":"Zestawy!$C$5","v":"/ZAiMMA/\nwarstwa:\nmateriał:\nprzeznaczenie:\n……….:"},"Oznaczenie składu ziarnowego PN-EN 12697-2+A1:2019-12, PN-EN 933-1:2012 (A)"]
[{"$f":"Zestawy!$C$5","v":"/ZAiMMA/\nwarstwa:\nmateriał:\nprzeznaczenie:\n……….:"},"Gęstość w wodzie. Metoda A wg PN-EN 12697-5:2019-01 (A)"]
[{"$f":"Zestawy!$C$5","v":"/ZAiMMA/\nwarstwa:\nmateriał:\nprzeznaczenie:\n……….:"},"Gęstość objętościowa próbki Marshalla. Metoda A wg PN-EN 12697-6:2020-07 p. 9.2"]
[{"$f":"Zestawy!$C$5","v":"/ZAiMMA/\nwarstwa:\nmateriał:\nprzeznaczenie:\n……….:"},"Gęstość objętościowa próbki Marshalla. Metoda B wg PN-EN 12697-6:2020-07 p. 9.3 (A)"]
[{"$f":"Zestawy!$C$5","v":"/ZAiMMA/\nwarstwa:\nmateriał:\nprzeznaczenie:\n……….:"},"Gęstość objętościowa próbki Marshalla. Metoda C wg PN-EN 12697-6:2020-07 p. 9.4"]
[{"$f":"Zestawy!$C$5","v":"/ZAiMMA/\nwarstwa:\nmateriał:\nprzeznaczenie:\n……….:"},"Gęstość objętościowa próbki Marshalla. Metoda D wg PN-EN 12697-6:2020-07 p. 9.5"]
[{"$f":"Zestawy!$C$5","v":"/ZAiMMA/\nwarstwa:\nmateriał:\nprzeznaczenie:\n……….:"},"Gęstość objętościowa próbki rdzeniowej. Metoda B wg PN-EN 12697-6:2020-07 p. 9.3 (A)"]
[{"$f":"Zestawy!$C$5","v":"/ZAiMMA/\nwarstwa:\nmateriał:\nprzeznaczenie:\n……….:"},"Zawartość wolnych przestrzeni w MMA wg PN-EN 12697-8:2019-01 p. 4 (A)"]
[{"$f":"Zestawy!$C$5","v":"/ZAiMMA/\nwarstwa:\nmateriał:\nprzeznaczenie:\n……….:"},"Wolne przestrzenie wypełnione lepiszczem wg PN-EN 12697-8:2019-01 p. 5"]
[{"$f":"Zestawy!$C$5","v":"/ZAiMMA/\nwarstwa:\nmateriał:\nprzeznaczenie:\n……….:"},"Zawartość wolnych przestrzeni w MM wg PN-EN 12697-8:2019-01 p. 5"]
[{"$f":"Zestawy!$C$5","v":"/ZAiMMA/\nwarstwa:\nmateriał:\nprzeznaczenie:\n……….:"},"Zawartość wolnych przestrzeni w próbce rdzeniowej wg PN-EN 12697-8:2019-01 p. 4 (A)"]
[{"$f":"Zestawy!$C$5","v":"/ZAiMMA/\nwarstwa:\nmateriał:\nprzeznaczenie:\n……….:"},"Oznaczenie grubości nawierzchni wg PN-EN 12697-36:2022-09 p. 6.1 (A)"]
[{"$f":"Zestawy!$C$5","v":"/ZAiMMA/\nwarstwa:\nmateriał:\nprzeznaczenie:\n……….:"},"Wskaźnik zagęszczenia wg PN-EN 13108-20:2016-07, zał. C (A)"]
[{"$f":"Zestawy!$C$5","v":"/ZAiMMA/\nwarstwa:\nmateriał:\nprzeznaczenie:\n……….:"},"Sczepność międzywarstwowa wg Instrukcji laboratoryjnego badania sczepności międzywarstwowej warstw asfaltowych wg metody Leutnera i wymagania techniczne sczepności, wyd. Politechnika Gdańska, 31.08.2014 r. "]
[{"$f":"Zestawy!$C$5","v":"/ZAiMMA/\nwarstwa:\nmateriał:\nprzeznaczenie:\n……….:"},"Odporność na działanie wody wg Załącznika nr 1 do WT-2 2014"]
[{"$f":"Zestawy!$C$5","v":"/ZAiMMA/\nwarstwa:\nmateriał:\nprzeznaczenie:\n……….:"},"Odporność na deformacje trwałe wg PN-EN 12697-22+A1:2024-05 (A)"]
[{"$f":"Zestawy!$C$5","v":"/ZAiMMA/\nwarstwa:\nmateriał:\nprzeznaczenie:\n……….:"},"Odporność na deformacje trwałe asfaltu lanego wg PN-EN 12697-20:2020-07"]
[{"$f":"Zestawy!$C$5","v":"/ZAiMMA/\nwarstwa:\nmateriał:\nprzeznaczenie:\n……….:"},"Odporność na zmęczenie wg PN-EN 12697-24:2018-08"]
[{"$f":"Zestawy!$C$5","v":"/ZAiMMA/\nwarstwa:\nmateriał:\nprzeznaczenie:\n……….:"},"Sztywność wg PN-EN 12697-26:2018-08"]
[{"$f":"Zestawy!$C$5","v":"/ZAiMMA/\nwarstwa:\nmateriał:\nprzeznaczenie:\n……….:"},"Spływność lepiszcza wg metody Schellenberga wg PN-EN 12697-18:2017-07"]
[{"$f":"Zestawy!$C$5","v":"/ZAiMMA/\nwarstwa:\nmateriał:\nprzeznaczenie:\n……….:"},"Współczynnik luminancji Qd MMA wg WT-2 2014 Załącznik 4"]
[{"$f":"Zestawy!$C$5","v":"/ZAiMMA/\nwarstwa:\nmateriał:\nprzeznaczenie:\n……….:"},"Penetracja w 25˚C asfaltu odzyskanego wg PN-EN 1426:2015-08 i PN-EN 12697-3+A1:2019-02"]
[{"$f":"Zestawy!$C$5","v":"/ZAiMMA/\nwarstwa:\nmateriał:\nprzeznaczenie:\n……….:"},"Temp. mięknienia asfaltu odzyskanego wg PN-EN 1427:2015-08 i PN-EN 12697-3+A1:2019-02"]
[{"$f":"Zestawy!$C$5","v":"/ZAiMMA/\nwarstwa:\nmateriał:\nprzeznaczenie:\n……….:"},"Nawrót sprężysty w 25˚C asfaltu odzyskanego wg PN-EN 13398:2017-12 i PN-EN 12697-3+A1:2019-02/dla asfaltów modyfikowanych/"]
[{"$f":"Zestawy!$C$5","v":"/ZAiMMA/\nwarstwa:\nmateriał:\nprzeznaczenie:\n……….:"},"Wydatek skropienia warstw nawierzchni emulsja asfaltową wg PN-EN 12272-1:2005"]
[{"$f":"Zestawy!$C$2","v":"/ZBiMW/\nobiekt:\nelement:\nklasa betonu:\nnr recepty:\ndostawca betonu:\nilość betonu:\n……….:"},"ZBiMW\nZespoł Betonu i Materiałów Wiążących"]
[{"$f":"Zestawy!$C$2","v":"/ZBiMW/\nobiekt:\nelement:\nklasa betonu:\nnr recepty:\ndostawca betonu:\nilość betonu:\n……….:"},"Pobieranie próbek z mieszanki betonowej wg PN-EN 12350-1:2019-07"]
[{"$f":"Zestawy!$C$2","v":"/ZBiMW/\nobiekt:\nelement:\nklasa betonu:\nnr recepty:\ndostawca betonu:\nilość betonu:\n……….:"},"Badanie zawartości powietrza w mieszance betonowej wg PN-EN 12350-7:2019-08"]
[{"$f":"Zestawy!$C$2","v":"/ZBiMW/\nobiekt:\nelement:\nklasa betonu:\nnr recepty:\ndostawca betonu:\nilość betonu:\n……….:"},"Badanie konsystencji mieszanki betonowej metodą opadu stożka wg PN-EN 12350-2:2019-07;"]
[{"$f":"Zestawy!$C$2","v":"/ZBiMW/\nobiekt:\nelement:\nklasa betonu:\nnr recepty:\ndostawca betonu:\nilość betonu:\n……….:"},"Badanie konsystencji metodą Vebe wg PN-EN 12350:2019-07;"]
[{"$f":"Zestawy!$C$2","v":"/ZBiMW/\nobiekt:\nelement:\nklasa betonu:\nnr recepty:\ndostawca betonu:\nilość betonu:\n……….:"},"Badanie konsystencji metodą stolika rozpływowego wg PN-EN 12350-5:2019-08"]
[{"$f":"Zestawy!$C$2","v":"/ZBiMW/\nobiekt:\nelement:\nklasa betonu:\nnr recepty:\ndostawca betonu:\nilość betonu:\n……….:"},"Badanie konsystencji betonu metodą stopnia zagęszczalności wg PN-EN 12350-4:2019-08"]
[{"$f":"Zestawy!$C$2","v":"/ZBiMW/\nobiekt:\nelement:\nklasa betonu:\nnr recepty:\ndostawca betonu:\nilość betonu:\n……….:"},"Badanie wytrzymałości betonu na ściskanie wg PN-EN 12390-3:2019-07 (A)"]
[{"$f":"Zestawy!$C$2","v":"/ZBiMW/\nobiekt:\nelement:\nklasa betonu:\nnr recepty:\ndostawca betonu:\nilość betonu:\n……….:"},"Badanie wytrzymałości betonu na zginanie wg PN-EN 12390-5:2019-08"]
[{"$f":"Zestawy!$C$2","v":"/ZBiMW/\nobiekt:\nelement:\nklasa betonu:\nnr recepty:\ndostawca betonu:\nilość betonu:\n……….:"},"Badanie wytrzymałości betonu na rozciąganie przy rozłupywaniu wg PN-EN 12390-6:2011"]
[{"$f":"Zestawy!$C$2","v":"/ZBiMW/\nobiekt:\nelement:\nklasa betonu:\nnr recepty:\ndostawca betonu:\nilość betonu:\n……….:"},"Badanie gęstości betonu wg PN-EN 12390-7:2019-08"]
[{"$f":"Zestawy!$C$2","v":"/ZBiMW/\nobiekt:\nelement:\nklasa betonu:\nnr recepty:\ndostawca betonu:\nilość betonu:\n……….:"},"Badanie głębokości penetracji wody pod ciśnieniem wg PN-EN 12390-8:2019-08"]
[{"$f":"Zestawy!$C$2","v":"/ZBiMW/\nobiekt:\nelement:\nklasa betonu:\nnr recepty:\ndostawca betonu:\nilość betonu:\n……….:"},"Badanie wytrzymałości betonu wg PN-88/B-06250"]
[{"$f":"Zestawy!$C$2","v":"/ZBiMW/\nobiekt:\nelement:\nklasa betonu:\nnr recepty:\ndostawca betonu:\nilość betonu:\n……….:"},"Badanie nasiąkliwości betonu wg PN-88/B-06250 (A)"]
[{"$f":"Zestawy!$C$2","v":"/ZBiMW/\nobiekt:\nelement:\nklasa betonu:\nnr recepty:\ndostawca betonu:\nilość betonu:\n……….:"},"Badanie wodoprzepuszczalności betonu wg PN-88/B-06250"]
[{"$f":"Zestawy!$C$2","v":"/ZBiMW/\nobiekt:\nelement:\nklasa betonu:\nnr recepty:\ndostawca betonu:\nilość betonu:\n……….:"},"Badanie mrozoodporności betonu metodą zwykłą wg PN-B-06265:2022-08 Załącznik N "]
[{"$f":"Zestawy!$C$2","v":"/ZBiMW/\nobiekt:\nelement:\nklasa betonu:\nnr recepty:\ndostawca betonu:\nilość betonu:\n……….:"},"Badanie betonowej kostki brukowej wg PN-EN 1338:2005/AC:2007 - Załącznik F Wytrzymałość na rozciąganie (A)"]
[{"$f":"Zestawy!$C$2","v":"/ZBiMW/\nobiekt:\nelement:\nklasa betonu:\nnr recepty:\ndostawca betonu:\nilość betonu:\n……….:"},"Badanie betonowej kostki brukowej wg PN-EN 1338:2005/AC:2007 - Załącznik E Nasiąkliwość (A)"]
[{"$f":"Zestawy!$C$2","v":"/ZBiMW/\nobiekt:\nelement:\nklasa betonu:\nnr recepty:\ndostawca betonu:\nilość betonu:\n……….:"},"Badanie betonowej kostki brukowej wg PN-EN 1338:2005/AC:2007 - Załącznik H Odporność na ścieranie"]
[{"$f":"Zestawy!$C$2","v":"/ZBiMW/\nobiekt:\nelement:\nklasa betonu:\nnr recepty:\ndostawca betonu:\nilość betonu:\n……….:"},"Badanie betonowej płyty brukowej wg PN-EN 1339:2005/AC:2007 - Załącznik F Wytrzymałość na zginanie"]
[{"$f":"Zestawy!$C$2","v":"/ZBiMW/\nobiekt:\nelement:\nklasa betonu:\nnr recepty:\ndostawca betonu:\nilość betonu:\n……….:"},"Badanie betonowej płyty brukowej wg PN-EN 1339:2005/AC:2007 - Załącznik E Nasiąkliwość"]
[{"$f":"Zestawy!$C$2","v":"/ZBiMW/\nobiekt:\nelement:\nklasa betonu:\nnr recepty:\ndostawca betonu:\nilość betonu:\n……….:"},"Badanie betonowej płyty brukowej wg PN-EN 1339:2005/AC:2007 - Załącznik H Odporność na ścieranie"]
[{"$f":"Zestawy!$C$2","v":"/ZBiMW/\nobiekt:\nelement:\nklasa betonu:\nnr recepty:\ndostawca betonu:\nilość betonu:\n……….:"},"Badanie krawężników wg PN-EN 1340:2004/AC:2007 - Załącznik F Wytrzymałość na zginanie"]
[{"$f":"Zestawy!$C$2","v":"/ZBiMW/\nobiekt:\nelement:\nklasa betonu:\nnr recepty:\ndostawca betonu:\nilość betonu:\n……….:"},"Badanie krawężników wg PN-EN 1340:2004/AC:2007 - Załącznik E Nasiąkliwość"]
[{"$f":"Zestawy!$C$2","v":"/ZBiMW/\nobiekt:\nelement:\nklasa betonu:\nnr recepty:\ndostawca betonu:\nilość betonu:\n……….:"},"Badanie krawężników wg PN-EN 1340:2004/AC:2007 - Załącznik H Odporność na ścieranie"]
[{"$f":"Zestawy!$C$2","v":"/ZBiMW/\nobiekt:\nelement:\nklasa betonu:\nnr recepty:\ndostawca betonu:\nilość betonu:\n……….:"},"Badanie betonu w konstrukcjach. Badania nieniszczące. Oznaczanie liczby odbicia wg PN-B-06262:1974 lub PN-EN 12504-2:2013-03"]
[{"$f":"Zestawy!$C$2","v":"/ZBiMW/\nobiekt:\nelement:\nklasa betonu:\nnr recepty:\ndostawca betonu:\nilość betonu:\n……….:"},"Pomiar przyczepności przez odrywanie wg PN-EN 1542:2000"]
[{"$f":"Zestawy!$C$2","v":"/ZBiMW/\nobiekt:\nelement:\nklasa betonu:\nnr recepty:\ndostawca betonu:\nilość betonu:\n……….:"},"Badania cementu. Oznaczanie wytrzymałości wg PN-EN 196-1:2016-07"]
[{"$f":"Zestawy!$C$2","v":"/ZBiMW/\nobiekt:\nelement:\nklasa betonu:\nnr recepty:\ndostawca betonu:\nilość betonu:\n……….:"},"Badania cementu. Oznaczenie czasów wiązania i stałości objętości wg PN-EN 196-3:2016-12"]
[{"$f":"Zestawy!$C$6","v":"/ZDN/\nwarstwa:\nmateriał:\nklasa drogi:\n……….:"},"ZDN\n(Zespół Diagnostyki Nawierzchni)"]
[{"$f":"Zestawy!$C$6","v":"/ZDN/\nwarstwa:\nmateriał:\nklasa drogi:\n……….:"},"Pomiar równości podłużnej nawierzchni - wskaźnik IRI. Pomiar profili podłużnych nawierzchni metodą profilometryczną wg PN-EN 13036-6:2008. Wskaźnik równości IRI (z obliczeń) wg ASTM E1926-08 i Wzorce i Standardy WR-D-64 Wytyczne określania cech powierzchniowych nawierzchni jezdni i innych części dróg, wersja 01 z dnia 18.07.2022 r., p.5 (A)"]
[{"$f":"Zestawy!$C$6","v":"/ZDN/\nwarstwa:\nmateriał:\nklasa drogi:\n……….:"},"Pomiar głębokości makrotekstury nawierzchni - wskaźnik MTD.\nPomiar głębokości makrotekstury nawierzchni, metoda profilometryczna - pomiar średniej głębokości profilu MPD wg PN-EN ISO 13473-1:2019-04"]
[{"$f":"Zestawy!$C$6","v":"/ZDN/\nwarstwa:\nmateriał:\nklasa drogi:\n……….:"},"Drogi samochodowe. Pomiar równości nawierzchni planografem i łatą BN-68/8931-04. Warunki techniczne wg Dz. U. z 2019 poz. 1643 z późn. zm."]
[{"$f":"Zestawy!$C$6","v":"/ZDN/\nwarstwa:\nmateriał:\nklasa drogi:\n……….:"},"Pomiar ugięć sprężystych nawierzchni ugięciomierzem dynamicznym FWD.\nPomiar ugięć sprężystych nawierzchni ugięciomierzem dynamicznym FWD wg\nZałącznika A do Zarządzenia nr 21 Generalnego Dyrektora Dróg Krajowych i Autostrad z dnia 17 czerwca 2019 r. Diagnostyka Stanu Nawierzchni i wybranych elementów korpusu drogi"]
[{"$f":"Zestawy!$C$6","v":"/ZDN/\nwarstwa:\nmateriał:\nklasa drogi:\n……….:"},"Pomiar właściwości przeciwpoślizgowych nawierzchni - współczynnik tarcia.\nPomiar właściwości przeciwpoślizgowych nawierzchni urządzeniem SRT-3 wg Instrukcja Badawcza IB 7.2-2 z dnia 20.06.2023 i Wzorce i Standardy WR-D-64 Wytyczne określania cech powierzchniowych nawierzchni jezdni i innych części dróg, wersja 01 z dnia 18.07.2022 r., p.4.1(A)"]
[{"$f":"Zestawy!$C$6","v":"/ZDN/\nwarstwa:\nmateriał:\nklasa drogi:\n……….:"},"Pomiar współczynnika odblasku R’ lica znaku z folii odblaskowej wg Dz. U. Nr 220 poz. 2181 oraz PN-EN 12899-1:2010"]
[{"$f":"Zestawy!$C$6","v":"/ZDN/\nwarstwa:\nmateriał:\nklasa drogi:\n……….:"},"Pomiar współczynnika luminancji β i współrzędnych chromatyczności x, y Stałe pionowe znaki drogowe wg PN-EN 12899-1:2010"]
[{"$f":"Zestawy!$C$6","v":"/ZDN/\nwarstwa:\nmateriał:\nklasa drogi:\n……….:"},"Pomiar współczynnika odblasku RL w stanie suchym wg PN-EN 1436:2018-02 Załącznik B (A)"]
[{"$f":"Zestawy!$C$6","v":"/ZDN/\nwarstwa:\nmateriał:\nklasa drogi:\n……….:"},"Pomiar współczynnika luminancji Qd w stanie suchym wg PN-EN 1436:2018-02 Załącznik A (A)"]
[{"$f":"Zestawy!$C$6","v":"/ZDN/\nwarstwa:\nmateriał:\nklasa drogi:\n……….:"},"Pomiar współczynnika odblasku RL w stanie wilgotnym wg PN-EN 1436:2018-02 Załącznik B"]
[{"$f":"Zestawy!$C$6","v":"/ZDN/\nwarstwa:\nmateriał:\nklasa drogi:\n……….:"},"Pomiar współczynnika luminancji Qd w stanie wilgotnym wg PN-EN 1436:2018-02 Załącznik A"]
[{"$f":"[1]Zestawy!$C$6","v":"/ZDN/\nwarstwa:\nmateriał:\nklasa drogi:\n……….:"},"Pomiar współczynnika luminancji β i współrzędnych chromatyczności x, y. Poziome oznakowanie dróg wg PN-EN 1436:2018-02 Załącznik C"]
[{"$f":"Zestawy!$C$6","v":"/ZDN/\nwarstwa:\nmateriał:\nklasa drogi:\n……….:"},"Pomiar wskaźnika szorstkości SRT oznakowania poziomego przy użyciu wahadła angielskiego  wg PN-EN 13036-4:2011"]
[{"$f":"Zestawy!$C$6","v":"/ZDN/\nwarstwa:\nmateriał:\nklasa drogi:\n……….:"},"Oznaczanie modułu odkształcenia przez obciążenie płytą VSS wg normy PN-S 02205:1998 Zał. B (A)"]
[{"$f":"Zestawy!$C$6","v":"/ZDN/\nwarstwa:\nmateriał:\nklasa drogi:\n……….:"},"Pomiar grubości powłoki antykorozyjnej wg PN-EN ISO 1461:2011",null,null,11]
[{"$f":"Zestawy!$C$4","v":"/ZGiG/\nmateriał:\nprzeznaczenie:\npochodzenie:\n……….:"},"ZGiG\n(Zespół Gruntów i Geotechniki)"]
[{"$f":"Zestawy!$C$4","v":"/ZGiG/\nmateriał:\nprzeznaczenie:\npochodzenie:\n……….:"},"Pobieranie próbek wg PN-EN 932-1:1999 p.8.8"]
[{"$f":"Zestawy!$C$4","v":"/ZGiG/\nmateriał:\nprzeznaczenie:\npochodzenie:\n……….:"},"Analiza sitowa wg PN-88/B-04481 p.4.1                                                "]
[{"$f":"Zestawy!$C$4","v":"/ZGiG/\nmateriał:\nprzeznaczenie:\npochodzenie:\n……….:"},"Uziarnienie wg PN-EN 933-1:2012    "]
[{"$f":"Zestawy!$C$4","v":"/ZGiG/\nmateriał:\nprzeznaczenie:\npochodzenie:\n……….:"},"Wskaźnik różnoziarnistości wg PN-98/B-02481                                                                                            "]
[{"$f":"Zestawy!$C$4","v":"/ZGiG/\nmateriał:\nprzeznaczenie:\npochodzenie:\n……….:"},"Wilgotność naturalna wg PN-88/B-04481 p.5.1                                                "]
[{"$f":"Zestawy!$C$4","v":"/ZGiG/\nmateriał:\nprzeznaczenie:\npochodzenie:\n……….:"},"Wilgotność optymalna oraz maksymalna gęstość objętościowa szkieletu gruntowego wg PN-88/B-04481 p.8 Metoda I lub Metoda II  (A)                                            "]
[{"$f":"Zestawy!$C$4","v":"/ZGiG/\nmateriał:\nprzeznaczenie:\npochodzenie:\n……….:"},"Wilgotność optymalna i maksymalna gęstość objętościowa wg metody Proctora wg PN-EN 13286-2:2010"]
[{"$f":"Zestawy!$C$4","v":"/ZGiG/\nmateriał:\nprzeznaczenie:\npochodzenie:\n……….:"},"Granica plastyczności wg PN-88/B-04481 p.5.5                                                                               "]
[{"$f":"Zestawy!$C$4","v":"/ZGiG/\nmateriał:\nprzeznaczenie:\npochodzenie:\n……….:"},"Granica płynności wg PN-88/B-04481 p.5.6                                                                               "]
[{"$f":"Zestawy!$C$4","v":"/ZGiG/\nmateriał:\nprzeznaczenie:\npochodzenie:\n……….:"},"Kapilarność bierna wg PN-60/B-04493"]
[{"$f":"Zestawy!$C$4","v":"/ZGiG/\nmateriał:\nprzeznaczenie:\npochodzenie:\n……….:"},"Analiza makroskopowa wg PN-88/B-04481 p.3.2                                               "]
[{"$f":"Zestawy!$C$4","v":"/ZGiG/\nmateriał:\nprzeznaczenie:\npochodzenie:\n……….:"},"Analiza areometryczna wg PN-88/B-04481 p.4.2                                                "]
[{"$f":"Zestawy!$C$4","v":"/ZGiG/\nmateriał:\nprzeznaczenie:\npochodzenie:\n……….:"},"Wskaźnik wodoprzepuszczalności wg PN-55/B-04492                                             "]
[{"$f":"Zestawy!$C$4","v":"/ZGiG/\nmateriał:\nprzeznaczenie:\npochodzenie:\n……….:"},"Współczynnik filtracji  wg PKN-CEN ISO/TS 17892-11:2009"]
[{"$f":"Zestawy!$C$4","v":"/ZGiG/\nmateriał:\nprzeznaczenie:\npochodzenie:\n……….:"},"Współczynnik filtracji wzór USBSC wg literatury"]
[null,"Oznaczanie strat masy przy prażeniu wg PN-88/B-04481, p.4.4.4.2 (A)"]
[{"$f":"Zestawy!$C$4","v":"/ZGiG/\nmateriał:\nprzeznaczenie:\npochodzenie:\n……….:"},"Zawartość części organicznych metoda utleniania wg PN-88/B-04481, p.4.4.4.1"]
[{"$f":"Zestawy!$C$4","v":"/ZGiG/\nmateriał:\nprzeznaczenie:\npochodzenie:\n……….:"},"Wskaźnik piaskowy wg BN-64/8931-01"]
[{"$f":"Zestawy!$C$4","v":"/ZGiG/\nmateriał:\nprzeznaczenie:\npochodzenie:\n……….:"},"Wskaźnik piaskowy wg PN-EN 933-8:2012"]
[{"$f":"Zestawy!$C$4","v":"/ZGiG/\nmateriał:\nprzeznaczenie:\npochodzenie:\n……….:"},"Wskaźnik nośności CBR wg PN-S-02205:1998 Zał. A"]
[{"$f":"Zestawy!$C$4","v":"/ZGiG/\nmateriał:\nprzeznaczenie:\npochodzenie:\n……….:"},"Wskaźnik nośności CBR po zagęszczeniu do wskaźnika zagęszczenia IS = 1,00 wg PN-EN 13286-47:2022-04"]
[{"$f":"Zestawy!$C$4","v":"/ZGiG/\nmateriał:\nprzeznaczenie:\npochodzenie:\n……….:"},"Wskaźnik nośności CBR po zagęszczeniu do wskaźnika zagęszczenia IS = 1,03 wg PN-EN 13286-47:2022-04"]
[{"$f":"Zestawy!$C$4","v":"/ZGiG/\nmateriał:\nprzeznaczenie:\npochodzenie:\n……….:"},"Pęcznienie liniowe wg PN-S-02205:1998 Zał. A"]
[{"$f":"Zestawy!$C$4","v":"/ZGiG/\nmateriał:\nprzeznaczenie:\npochodzenie:\n……….:"},"Pobranie próbek wg PN-EN 13286-50:2007"]
[{"$f":"Zestawy!$C$4","v":"/ZGiG/\nmateriał:\nprzeznaczenie:\npochodzenie:\n……….:"},"Pobranie próbek wg PN-S-96012:1997"]
[{"$f":"Zestawy!$C$4","v":"/ZGiG/\nmateriał:\nprzeznaczenie:\npochodzenie:\n……….:"},"Wytrzymałość na ściskanie wg PN-EN 13286-41:2005"]
[{"$f":"Zestawy!$C$4","v":"/ZGiG/\nmateriał:\nprzeznaczenie:\npochodzenie:\n……….:"},"Wytrzymałość na ściskanie wg PN-S-96012:1997"]
[{"$f":"Zestawy!$C$4","v":"/ZGiG/\nmateriał:\nprzeznaczenie:\npochodzenie:\n……….:"},"Wskaźnik mrozoodporności wg PN-S-96012:1997"]
[{"$f":"Zestawy!$C$4","v":"/ZGiG/\nmateriał:\nprzeznaczenie:\npochodzenie:\n……….:"},"Wskaźnik mrozoodporności wg WT-5"]
[{"$f":"Zestawy!$C$4","v":"/ZGiG/\nmateriał:\nprzeznaczenie:\npochodzenie:\n……….:"},"Wskaźnika zagęszczenia wg BN-77/8931-12 p. 3 (objętościomierz wodny)"]
[{"$f":"Zestawy!$C$4","v":"/ZGiG/\nmateriał:\nprzeznaczenie:\npochodzenie:\n……….:"},"Wskaźnika zagęszczenia wg BN-77/8931-12 p. 4 (A) "]
[{"$f":"Zestawy!$C$4","v":"/ZGiG/\nmateriał:\nprzeznaczenie:\npochodzenie:\n……….:"},"Wiercenia geotechniczne wg PN-B-04452:2002 p.11 "]
[{"$f":"Zestawy!$C$4","v":"/ZGiG/\nmateriał:\nprzeznaczenie:\npochodzenie:\n……….:"},"Pobieranie próbek wg PN-B-04452:2002 p.12"]
[{"$f":"Zestawy!$C$4","v":"/ZGiG/\nmateriał:\nprzeznaczenie:\npochodzenie:\n……….:"},"Sondowanie sondą DPL wg PN-B-04452:2002 p.6 "]
[{"$f":"Zestawy!$C$4","v":"/ZGiG/\nmateriał:\nprzeznaczenie:\npochodzenie:\n……….:"},"Sondowanie sondą DPM wg PN-B-04452:2002 p.6"]
[{"$f":"Zestawy!$C$4","v":"/ZGiG/\nmateriał:\nprzeznaczenie:\npochodzenie:\n……….:"},"Dynamiczny moduł odkształcenia - metoda obciążeń płytą dynamiczną wg KPiRNPiP 2013 GDDKiA, IBDiM Załącznik B4 (A)"]
[{"$f":"Zestawy!$C$4","v":"/ZGiG/\nmateriał:\nprzeznaczenie:\npochodzenie:\n……….:"},"Wskaźnik krzywizny uziarnienia PN-98/B-02481"]
[{"$f":"Zestawy!$C$4","v":"/ZGiG/\nmateriał:\nprzeznaczenie:\npochodzenie:\n……….:"},"Oznaczenie jednoosiowej wytrzymalości na ściskanie wg PN-EN 1926:2007"]
[{"$f":"Zestawy!$C$4","v":"/ZGiG/\nmateriał:\nprzeznaczenie:\npochodzenie:\n……….:"},"Oznaczenie wytrzymałości na ściskanie PN-B-04110:1984"]
[{"$f":"Zestawy!$C$4","v":"/ZGiG/\nmateriał:\nprzeznaczenie:\npochodzenie:\n……….:"},"Badanie penetrometrem stożkowym wg PKN-CEN-ISO/TS 17892-6:2009"]
[{"$f":"Zestawy!$C$4","v":"/ZGiG/\nmateriał:\nprzeznaczenie:\npochodzenie:\n……….:"},"Oznaczenie granic Atteberga wg PKN-CEN-ISO/TS 17892-12:2009"]
[{"$f":"Zestawy!$C$4","v":"/ZGiG/\nmateriał:\nprzeznaczenie:\npochodzenie:\n……….:"},"Kąt tarcia wewnętrznego wg PN-B-04481:1988 p.7.2  "]
[{"$f":"Zestawy!$C$4","v":"/ZGiG/\nmateriał:\nprzeznaczenie:\npochodzenie:\n……….:"},"Grubość warstw konstrukcji - metoda georadarowa, antena HORN"]
[{"$f":"Zestawy!$C$3","v":"/ZK/\nmateriał:\nprzeznaczenie:\npochodzenie:\n……….:"},"ZK\n(Zespół Kruszyw)"]
[{"$f":"Zestawy!$C$3","v":"/ZK/\nmateriał:\nprzeznaczenie:\npochodzenie:\n……….:"},"Uziarnienie wypełniacza wg PN-EN 933-10:2009"]
[{"$f":"Zestawy!$C$3","v":"/ZK/\nmateriał:\nprzeznaczenie:\npochodzenie:\n……….:"},"Jakość pyłów wg PN-EN 933-9:2022-07"]
[{"$f":"Zestawy!$C$3","v":"/ZK/\nmateriał:\nprzeznaczenie:\npochodzenie:\n……….:"},"Wolne przestrzenie w suchym zagęszczonym wypełniaczu wg PN-EN 1097-4:2008"]
[{"$f":"Zestawy!$C$3","v":"/ZK/\nmateriał:\nprzeznaczenie:\npochodzenie:\n……….:"},"Przyrost temperatury mięknienia wg PN-EN 13179-1:2013"]
[{"$f":"Zestawy!$C$3","v":"/ZK/\nmateriał:\nprzeznaczenie:\npochodzenie:\n……….:"},"Gęstość ziarn wypełniacza wg PN-EN 1097-7:2008"]
[{"$f":"Zestawy!$C$3","v":"/ZK/\nmateriał:\nprzeznaczenie:\npochodzenie:\n……….:"},"Zawartość wody wg PN-EN 1097-5:2008 (A)"]
[{"$f":"Zestawy!$C$3","v":"/ZK/\nmateriał:\nprzeznaczenie:\npochodzenie:\n……….:"},"Rozpuszczalność w wodzie wg PN-EN 1744-1+A1:2013, p.16.2"]
[{"$f":"Zestawy!$C$3","v":"/ZK/\nmateriał:\nprzeznaczenie:\npochodzenie:\n……….:"},"Uziarnienie wg PN-EN 933-1:2012 (A)"]
[{"$f":"Zestawy!$C$3","v":"/ZK/\nmateriał:\nprzeznaczenie:\npochodzenie:\n……….:"},"Zawartość pyłów wg PN-EN 933-1:2012"]
[{"$f":"Zestawy!$C$3","v":"/ZK/\nmateriał:\nprzeznaczenie:\npochodzenie:\n……….:"},"Wskaźnik kształtu wg PN-EN 933-4:2008 (A)"]
[{"$f":"Zestawy!$C$3","v":"/ZK/\nmateriał:\nprzeznaczenie:\npochodzenie:\n……….:"},"Wskaźnik płaskości wg PN-EN 933-3:2012"]
[{"$f":"Zestawy!$C$3","v":"/ZK/\nmateriał:\nprzeznaczenie:\npochodzenie:\n……….:"},"Kanciastość kruszywa wg PN-EN 933-6:2023-06"]
[{"$f":"Zestawy!$C$3","v":"/ZK/\nmateriał:\nprzeznaczenie:\npochodzenie:\n……….:"},"Procentowa zawartość ziaren przekruszonych wg PN-EN 933-5:2023-05"]
[{"$f":"Zestawy!$C$3","v":"/ZK/\nmateriał:\nprzeznaczenie:\npochodzenie:\n……….:"},"Grube zanieczyszczenia lekkie wg PN-EN 1744-1:2013, p. 14.2"]
[{"$f":"Zestawy!$C$3","v":"/ZK/\nmateriał:\nprzeznaczenie:\npochodzenie:\n……….:"},"Zawartość substancji organicznych wg PN-EN 1744-1:2013, p. 15.1"]
[{"$f":"Zestawy!$C$3","v":"/ZK/\nmateriał:\nprzeznaczenie:\npochodzenie:\n……….:"},"Odporność kruszywa na rozdrabnianie metodą Los Angeles wg PN-EN 1097-2:2020-09 p. 5 (A)"]
[{"$f":"Zestawy!$C$3","v":"/ZK/\nmateriał:\nprzeznaczenie:\npochodzenie:\n……….:"},"Odporność kruszywa na ścieranie (mikro-Deval) wg PN-EN 1097-1:2011 "]
[{"$f":"Zestawy!$C$3","v":"/ZK/\nmateriał:\nprzeznaczenie:\npochodzenie:\n……….:"},"Odporność kruszywa na polerowanie wg PN-EN 1097-8:2009"]
[{"$f":"Zestawy!$C$3","v":"/ZK/\nmateriał:\nprzeznaczenie:\npochodzenie:\n……….:"},"Zgorzel słoneczna bazaltu wg PN-EN 1367-3:2002/AC:2004"]
[{"$f":"Zestawy!$C$3","v":"/ZK/\nmateriał:\nprzeznaczenie:\npochodzenie:\n……….:"},"Gęstość ziarn wg PN-EN 1097-6:2022-07"]
[{"$f":"Zestawy!$C$3","v":"/ZK/\nmateriał:\nprzeznaczenie:\npochodzenie:\n……….:"},"Nasiąkliwość wg PN-EN 1097-6:2022-07"]
[{"$f":"Zestawy!$C$3","v":"/ZK/\nmateriał:\nprzeznaczenie:\npochodzenie:\n……….:"},"Gęstość nasypowa wg PN-EN 1097-3:2000"]
[{"$f":"Zestawy!$C$3","v":"/ZK/\nmateriał:\nprzeznaczenie:\npochodzenie:\n……….:"},"Mrozoodporność wg PN-EN 1367-1:2007"]
[{"$f":"Zestawy!$C$3","v":"/ZK/\nmateriał:\nprzeznaczenie:\npochodzenie:\n……….:"},"Mrozoodporność w obecności soli wg PN-EN 1367-6:2008"]
[{"$f":"Zestawy!$C$3","v":"/ZK/\nmateriał:\nprzeznaczenie:\npochodzenie:\n……….:"},"Powinowactwo pomiędzy kruszywem i asfaltem wg PN-EN 12697-11:2012, p.5"]
[{"$f":"Zestawy!$C$3","v":"/ZK/\nmateriał:\nprzeznaczenie:\npochodzenie:\n……….:"},"Reaktywność alkaliczna wg PN-79/B-06714/46"]
[{"$f":"Zestawy!$C$3","v":"/ZK/\nmateriał:\nprzeznaczenie:\npochodzenie:\n……….:"},"Reaktywność kruszywa metodą przyśpieszoną wg procedury GDDKiA PB/1/18"]
[{"$f":"Zestawy!$C$3","v":"/ZK/\nmateriał:\nprzeznaczenie:\npochodzenie:\n……….:"},"Wrażliwość na mróz (wskaźnik piaskowy SE) po 5-krotnym zagęszczeniu metodą Proctora wg PN-EN 933-8+A1:2015-07 (A)"]
[{"$f":"Zestawy!$C$3","v":"/ZK/\nmateriał:\nprzeznaczenie:\npochodzenie:\n……….:"},"Współczynnik filtracji wg PKN-CEN ISO/TS 17892-11:2009"]
[{"$f":"Zestawy!$C$3","v":"/ZK/\nmateriał:\nprzeznaczenie:\npochodzenie:\n……….:"},"Wskaźnik nośności CBR po zagęszczeniu do wskaźnika zagęszczenia IS = 1,00 wg PN-EN 13286-47:2022-04"]
[{"$f":"Zestawy!$C$3","v":"/ZK/\nmateriał:\nprzeznaczenie:\npochodzenie:\n……….:"},"Wskaźnik nośności CBR po zagęszczeniu do wskaźnika zagęszczenia IS = 1,03 wg PN-EN 13286-47:2022-04"]
[{"$f":"Zestawy!$C$3","v":"/ZK/\nmateriał:\nprzeznaczenie:\npochodzenie:\n……….:"},"Wilgotność optymalna i maksymalna gęstość objętościowa wg metody Proctora wg PN-EN 13286-2:2010"]
[{"$f":"Zestawy!$C$3","v":"/ZK/\nmateriał:\nprzeznaczenie:\npochodzenie:\n……….:"},"Wskaźnik piaskowy SE wg PN-EN 933-8+A1:2015-07 (A)"]
[{"$f":"Zestawy!$C$3","v":"/ZK/\nmateriał:\nprzeznaczenie:\npochodzenie:\n……….:"},"Pobór próbek kruszywa wg PN-EN 932-1:1999, p.8.8 (A)"]
[{"$f":"Zestawy!$C$3","v":"/ZK/\nmateriał:\nprzeznaczenie:\npochodzenie:\n……….:"},"Uziarnienie soli wg PN-80/C-84081/10"]
[{"$f":"Zestawy!$C$3","v":"/ZK/\nmateriał:\nprzeznaczenie:\npochodzenie:\n……….:"},"Zawartość wody w soli wg PN-80/C-84081/20"]
[{"$f":"Zestawy!$C$3","v":"/ZK/\nmateriał:\nprzeznaczenie:\npochodzenie:\n……….:"},"Zawartość NaCl wg PN-80/C-84081/31"]
[{"$f":"Zestawy!$C$3","v":"/ZK/\nmateriał:\nprzeznaczenie:\npochodzenie:\n……….:"},"Zawartość substancji nierozpuszczalnych wg PN-80/C-84081/21"]
[{"$f":"Zestawy!$C$3","v":"/ZK/\nmateriał:\nprzeznaczenie:\npochodzenie:\n……….:"},"Zawartość żelazocyjanku potasu (antyzbrylacz) wg PN-80/C-84081/40 metoda fotokolorymetryczna"]

{"sheet":"Zestawy","index":4,"n_rows":7,"n_cols":3,"rows_kept":7,"cut":false,"hidden":true,"merged":[]}
["Rodzaj badań (stałe wartości)","Typ badań (stałe wartości)","Obiekt badań (indywidualne wartości w zależności od potrzeb)"]
["akceptacyjne","laboratoryjne na próbkach pobranych przez Zleceniobiorcę","/ZBiMW/\nobiekt:\nelement:\nklasa betonu:\nnr recepty:\ndostawca betonu:\nilość betonu:\n……….:"]
["kontrolne","laboratoryjne na próbkach pobranych przez Nadzór","/ZK/\nmateriał:\nprzeznaczenie:\npochodzenie:\n……….:"]
["kontrolne dodatkowe","polowe / terenowe","/ZGiG/\nmateriał:\nprzeznaczenie:\npochodzenie:\n……….:"]
["arbitrażowe","inne","/ZAiMMA/\nwarstwa:\nmateriał:\nprzeznaczenie:\n……….:"]
["gwarancyjne",null,"/ZDN/\nwarstwa:\nmateriał:\nklasa drogi:\n……….:"]
["inne"]